[Event "Titled Tuesday Blitz March 29 Late 2022"]
[White "Erdogdu, Mert"]
[Black "Koutlas, Nikolaos"]
[WhiteFideId "6301495"]
[BlackFideId "25827138"]
[WhiteElo "2485"]
[BlackElo "1610"]
[Result "0-1"]
[Round "10"]
[TimeControl "180+1"]
[Date "2022.03.29"]
[WhiteClock "0:00:17"]
[BlackClock "0:00:07"]

1. e4 {[%clk 0:03:00]}  e5 {[%clk 0:02:55]} 2. Nf3 {[%clk 0:03:00]}  Nc6 {[%clk 0:02:52]} 3. Bc4 {[%clk 0:03:00]}  Nf6 {[%clk 0:02:50]} 4. d3 {[%clk 0:03:00]}  Be7 {[%clk 0:02:48]} 5. O-O {[%clk 0:03:00]}  O-O {[%clk 0:02:48]} 6. a4 {[%clk 0:03:00]}  d6 {[%clk 0:02:44]} 7. c3 {[%clk 0:02:57]}  h6 {[%clk 0:02:38]} 8. Nbd2 {[%clk 0:02:54]}  Be6 {[%clk 0:02:37]} 9. a5 {[%clk 0:02:53]}  a6 {[%clk 0:02:36]} 10. Re1 {[%clk 0:02:53]}  Re8 {[%clk 0:02:23]} 11. Bxe6 {[%clk 0:02:46]}  fxe6 {[%clk 0:02:24]} 12. Qb3 {[%clk 0:02:45]}  Qc8 {[%clk 0:02:22]} 13. Nc4 {[%clk 0:02:44]}  Rf8 {[%clk 0:02:15]} 14. Be3 {[%clk 0:02:35]}  Ng4 {[%clk 0:02:07]} 15. Rad1 {[%clk 0:02:23]}  g5 {[%clk 0:01:48]} 16. d4 {[%clk 0:02:17]}  Nxe3 {[%clk 0:01:35]} 17. Nxe3 {[%clk 0:02:07]}  g4 {[%clk 0:01:28]} 18. Nxg4 {[%clk 0:01:55]}  exd4 {[%clk 0:01:22]} 19. Nxd4 {[%clk 0:01:40]}  Nxd4 {[%clk 0:01:20]} 20. cxd4 {[%clk 0:01:40]}  Kg7 {[%clk 0:01:18]} 21. Ne3 {[%clk 0:01:34]}  Rf4 {[%clk 0:01:14]} 22. f3 {[%clk 0:01:29]}  Bg5 {[%clk 0:01:10]} 23. d5 {[%clk 0:01:21]}  e5 {[%clk 0:01:05]} 24. Nf5+ {[%clk 0:01:10]}  Kf6 {[%clk 0:00:52]} 25. Ng3 {[%clk 0:01:00]}  Kg6 {[%clk 0:00:42]} 26. Rc1 {[%clk 0:00:56]}  h5 {[%clk 0:00:37]} 27. Nf5 {[%clk 0:00:52]}  Kf6 {[%clk 0:00:25]} 28. Nxd6 {[%clk 0:00:45]}  Qd7 {[%clk 0:00:23]} 29. Nc4 {[%clk 0:00:44]}  Rh4 {[%clk 0:00:18]} 30. Rc2 {[%clk 0:00:36]}  Bf4 {[%clk 0:00:18]} 31. g3 {[%clk 0:00:33]}  Rg8 {[%clk 0:00:18]} 32. Rg2 {[%clk 0:00:31]}  Qh3 {[%clk 0:00:09]} 33. Ne3 {[%clk 0:00:20]}  Bxg3 {[%clk 0:00:05]} 34. hxg3 {[%clk 0:00:20]}  Rxg3 {[%clk 0:00:06]} 35. Qc2 {[%clk 0:00:18]}  Qh1+ {[%clk 0:00:04]} 36. Kf2 {[%clk 0:00:19]}  Rxf3+ {[%clk 0:00:05]} 37. Kxf3 {[%clk 0:00:17]}  Qxe1 {[%clk 0:00:05]} 38. Rf2 {[%clk 0:00:15]}  Rf4+ {[%clk 0:00:05]} 39. Kg3 {[%clk 0:00:15]}  Qxe3+ {[%clk 0:00:06]} 40. Kg2 {[%clk 0:00:16]}  Rxf2+ {[%clk 0:00:04]} 41. Qxf2+ {[%clk 0:00:16]}  Qxf2+ {[%clk 0:00:05]} 42. Kxf2 {[%clk 0:00:16]}  Kg5 {[%clk 0:00:05]} 43. Kg3 {[%clk 0:00:17]}  h4+ {[%clk 0:00:06]} 44. Kf3 {[%clk 0:00:16]}  h3 {[%clk 0:00:05]} 45. Kg3 {[%clk 0:00:17]}  h2 {[%clk 0:00:06]} 46. Kxh2 {[%clk 0:00:17]}  Kf4 {[%clk 0:00:07]} 47. b4 {[%clk 0:00:17]}  Kxe4 {[%clk 0:00:07]} 0-1


[Site "https://www.chess.com"]

[Event "Titled Tuesday Blitz March 29 Late 2022"]
[White "Fiol, Fabrice"]
[Black "Bryakin, Mikhail"]
[WhiteFideId "611670"]
[BlackFideId "4165314"]
[WhiteElo "2424"]
[BlackElo "2417"]
[Result "0-1"]
[Round "10"]
[TimeControl "180+1"]
[Date "2022.03.29"]
[WhiteClock "0:00:01"]
[BlackClock "0:02:59"]

1. e4 {[%clk 0:03:00]}  e6 {[%clk 0:02:58]} 2. d3 {[%clk 0:02:57]}  d5 {[%clk 0:02:59]} 3. Nd2 {[%clk 0:02:56]}  c5 {[%clk 0:03:00]} 4. Ngf3 {[%clk 0:02:56]}  Nc6 {[%clk 0:03:01]} 5. g3 {[%clk 0:02:55]}  g6 {[%clk 0:03:01]} 6. Bg2 {[%clk 0:02:50]}  Nge7 {[%clk 0:03:01]} 7. O-O {[%clk 0:02:50]}  Bg7 {[%clk 0:03:02]} 8. c3 {[%clk 0:02:49]}  O-O {[%clk 0:03:02]} 9. Re1 {[%clk 0:02:46]}  b6 {[%clk 0:03:02]} 10. a4 {[%clk 0:02:43]}  Bb7 {[%clk 0:03:02]} 11. Nf1 {[%clk 0:02:33]}  d4 {[%clk 0:03:02]} 12. c4 {[%clk 0:02:30]}  Qd7 {[%clk 0:03:02]} 13. h4 {[%clk 0:02:27]}  f5 {[%clk 0:03:02]} 14. exf5 {[%clk 0:02:19]}  exf5 {[%clk 0:03:02]} 15. Ng5 {[%clk 0:02:19]}  Rfe8 {[%clk 0:03:02]} 16. Ne6 {[%clk 0:02:13]}  Bf6 {[%clk 0:03:01]} 17. Bf4 {[%clk 0:02:11]}  Rac8 {[%clk 0:03:00]} 18. Nh2 {[%clk 0:02:00]}  Nd8 {[%clk 0:03:00]} 19. Nxd8 {[%clk 0:02:00]}  Rexd8 {[%clk 0:03:01]} 20. Bxb7 {[%clk 0:01:57]}  Qxb7 {[%clk 0:03:02]} 21. Qf3 {[%clk 0:01:53]}  Qxf3 {[%clk 0:03:01]} 22. Nxf3 {[%clk 0:01:54]}  Nc6 {[%clk 0:03:02]} 23. Re6 {[%clk 0:01:50]}  Kf7 {[%clk 0:03:02]} 24. Rae1 {[%clk 0:01:42]}  Re8 {[%clk 0:03:02]} 25. Rxe8 {[%clk 0:01:30]}  Rxe8 {[%clk 0:03:03]} 26. Rxe8 {[%clk 0:01:27]}  Kxe8 {[%clk 0:03:04]} 27. Bd2 {[%clk 0:01:23]}  Kd7 {[%clk 0:02:59]} 28. Kf1 {[%clk 0:01:22]}  Ke6 {[%clk 0:02:59]} 29. Ng5+ {[%clk 0:01:19]}  Bxg5 {[%clk 0:02:58]} 30. Bxg5 {[%clk 0:01:19]}  a6 {[%clk 0:02:55]} 31. Bd2 {[%clk 0:01:12]}  Kd7 {[%clk 0:02:55]} 32. Ke2 {[%clk 0:01:11]}  Ne5 {[%clk 0:02:56]} 33. Bf4 {[%clk 0:01:02]}  Ng4 {[%clk 0:02:57]} 34. b3 {[%clk 0:00:57]}  Kc6 {[%clk 0:02:56]} 35. Bg5 {[%clk 0:00:38]}  Ne5 {[%clk 0:02:56]} 36. f3 {[%clk 0:00:32]}  Nd7 {[%clk 0:02:57]} 37. g4 {[%clk 0:00:28]}  b5 {[%clk 0:02:57]} 38. gxf5 {[%clk 0:00:27]}  gxf5 {[%clk 0:02:58]} 39. Kd2 {[%clk 0:00:20]}  bxc4 {[%clk 0:02:57]} 40. dxc4 {[%clk 0:00:17]}  Ne5 {[%clk 0:02:58]} 41. Ke2 {[%clk 0:00:11]}  Ng6 {[%clk 0:02:59]} 42. h5 {[%clk 0:00:11]}  Ne5 {[%clk 0:03:00]} 43. Bf6 {[%clk 0:00:07]}  Nd7 {[%clk 0:03:00]} 44. Bg7 {[%clk 0:00:07]}  Kd6 {[%clk 0:03:00]} 45. f4 {[%clk 0:00:06]}  Kc6 {[%clk 0:03:00]} 46. Kd3 {[%clk 0:00:06]}  Nb6 {[%clk 0:03:01]} 47. Bf6 {[%clk 0:00:05]}  Nc8 {[%clk 0:03:01]} 48. Bg7 {[%clk 0:00:04]}  Nd6 {[%clk 0:03:02]} 49. Be5 {[%clk 0:00:02]}  Ne4 {[%clk 0:03:02]} 50. Bg7 {[%clk 0:00:01]}  Nf2+ {[%clk 0:03:02]} 51. Kd2 {[%clk 0:00:01]}  Ne4+ {[%clk 0:03:03]} 52. Kd3 {[%clk 0:00:01]}  Ng3 {[%clk 0:03:04]} 53. h6 {[%clk 0:00:01]}  Nh5 {[%clk 0:03:03]} 54. Be5 {[%clk 0:00:01]}  Ng3 {[%clk 0:03:04]} 55. Kd2 {[%clk 0:00:01]}  Ne4+ {[%clk 0:03:04]} 56. Kd3 {[%clk 0:00:02]}  Nf2+ {[%clk 0:03:05]} 57. Kd2 {[%clk 0:00:02]}  Ng4 {[%clk 0:03:06]} 58. Bg7 {[%clk 0:00:02]}  Ne3 {[%clk 0:03:07]} 59. Kd3 {[%clk 0:00:02]}  Nf1 {[%clk 0:03:04]} 60. Bf6 {[%clk 0:00:01]}  Kd7 {[%clk 0:03:03]} 61. Bg7 {[%clk 0:00:01]}  Ke7 {[%clk 0:03:03]} 62. Ke2 {[%clk 0:00:02]}  Ng3+ {[%clk 0:03:02]} 63. Kf3 {[%clk 0:00:03]}  Nh5 {[%clk 0:03:03]} 64. Be5 {[%clk 0:00:02]}  Ke6 {[%clk 0:03:00]} 65. Bc7 {[%clk 0:00:01]}  Nf6 {[%clk 0:03:00]} 66. Be5 {[%clk 0:00:01]}  Ng8 {[%clk 0:02:59]} 0-1


[Site "https://www.chess.com"]

[Event "Titled Tuesday Blitz March 29 Late 2022"]
[White "Fishbein, Alexander"]
[Black "Vusatiuk, Vladimir"]
[WhiteFideId "2000377"]
[BlackFideId "14118610"]
[WhiteElo "2442"]
[BlackElo "2157"]
[Result "0-1"]
[Round "10"]
[TimeControl "180+1"]
[Date "2022.03.29"]
[WhiteClock "0:00:05"]
[BlackClock "0:00:50"]

1. e4 {[%clk 0:02:59]}  Nc6 {[%clk 0:02:59]} 2. Nf3 {[%clk 0:02:59]}  f5 {[%clk 0:02:59]} 3. exf5 {[%clk 0:02:54]}  d5 {[%clk 0:02:59]} 4. d4 {[%clk 0:02:53]}  Bxf5 {[%clk 0:02:57]} 5. Bb5 {[%clk 0:02:53]}  Bd7 {[%clk 0:02:53]} 6. O-O {[%clk 0:02:52]}  Nf6 {[%clk 0:02:49]} 7. Bf4 {[%clk 0:02:47]}  e6 {[%clk 0:02:49]} 8. Re1 {[%clk 0:02:43]}  Bd6 {[%clk 0:02:47]} 9. Bxc6 {[%clk 0:02:40]}  bxc6 {[%clk 0:02:41]} 10. Be5 {[%clk 0:02:39]}  O-O {[%clk 0:02:34]} 11. Nbd2 {[%clk 0:02:38]}  c5 {[%clk 0:02:29]} 12. dxc5 {[%clk 0:02:33]}  Bxc5 {[%clk 0:02:27]} 13. Nb3 {[%clk 0:02:34]}  Bb6 {[%clk 0:02:14]} 14. Bd4 {[%clk 0:02:34]}  Ne4 {[%clk 0:02:08]} 15. c4 {[%clk 0:02:18]}  c5 {[%clk 0:01:57]} 16. cxd5 {[%clk 0:02:11]}  exd5 {[%clk 0:01:50]} 17. Bxc5 {[%clk 0:01:41]}  Bg4 {[%clk 0:01:27]} 18. Bxb6 {[%clk 0:01:01]}  axb6 {[%clk 0:01:28]} 19. Nbd4 {[%clk 0:00:53]}  Ng5 {[%clk 0:01:14]} 20. Nc6 {[%clk 0:00:46]}  Bxf3 {[%clk 0:01:00]} 21. gxf3 {[%clk 0:00:40]}  Qf6 {[%clk 0:00:59]} 22. Qxd5+ {[%clk 0:00:38]}  Kh8 {[%clk 0:00:57]} 23. Ne5 {[%clk 0:00:21]}  Ra5 {[%clk 0:00:55]} 24. Nd7 {[%clk 0:00:11]}  Nxf3+ {[%clk 0:00:49]} 25. Kf1 {[%clk 0:00:10]}  Nxh2+ {[%clk 0:00:49]} 26. Kg1 {[%clk 0:00:06]}  Qxf2+ {[%clk 0:00:50]} 27. Kh1 {[%clk 0:00:05]} 0-1


[Site "https://www.chess.com"]

[Event "Titled Tuesday Blitz March 29 Late 2022"]
[White "Gracia Alvarez, Gerardo Antonio"]
[Black "Sarkar, Justin"]
[WhiteFideId "5109124"]
[BlackFideId "2010011"]
[WhiteElo "2139"]
[BlackElo "2038"]
[Result "1-0"]
[Round "10"]
[TimeControl "180+1"]
[Date "2022.03.30"]
[WhiteClock "0:01:01"]
[BlackClock "0:00:01"]

1. e4 {[%clk 0:03:00]}  c5 {[%clk 0:02:59]} 2. Nc3 {[%clk 0:03:01]}  Nc6 {[%clk 0:02:56]} 3. Bb5 {[%clk 0:03:00]}  Nd4 {[%clk 0:02:50]} 4. Nf3 {[%clk 0:03:00]}  Nxb5 {[%clk 0:02:28]} 5. Nxb5 {[%clk 0:03:01]}  d6 {[%clk 0:02:26]} 6. d4 {[%clk 0:03:01]}  Nf6 {[%clk 0:02:25]} 7. Nc3 {[%clk 0:02:59]}  cxd4 {[%clk 0:02:21]} 8. Qxd4 {[%clk 0:02:58]}  e6 {[%clk 0:02:10]} 9. Bg5 {[%clk 0:02:57]}  Be7 {[%clk 0:02:03]} 10. O-O-O {[%clk 0:02:57]}  O-O {[%clk 0:01:57]} 11. e5 {[%clk 0:02:57]}  dxe5 {[%clk 0:01:49]} 12. Qxe5 {[%clk 0:02:56]}  Bd7 {[%clk 0:01:21]} 13. Rd2 {[%clk 0:02:37]}  h6 {[%clk 0:01:05]} 14. Bh4 {[%clk 0:02:29]}  Qe8 {[%clk 0:00:45]} 15. Rg1 {[%clk 0:02:18]}  Bc6 {[%clk 0:00:35]} 16. Nd4 {[%clk 0:02:17]}  Nd7 {[%clk 0:00:18]} 17. Qg3 {[%clk 0:02:11]}  Bxh4 {[%clk 0:00:06]} 18. Qxh4 {[%clk 0:02:12]}  Ne5 {[%clk 0:00:06]} 19. g4 {[%clk 0:02:06]}  Ng6 {[%clk 0:00:05]} 20. Qg3 {[%clk 0:02:04]}  e5 {[%clk 0:00:04]} 21. Nf5 {[%clk 0:02:03]}  Nf4 {[%clk 0:00:03]} 22. h4 {[%clk 0:01:57]}  Rd8 {[%clk 0:00:02]} 23. g5 {[%clk 0:01:36]}  h5 {[%clk 0:00:03]} 24. Rxd8 {[%clk 0:01:20]}  Qxd8 {[%clk 0:00:04]} 25. Qe3 {[%clk 0:01:20]}  Qc7 {[%clk 0:00:02]} 26. Re1 {[%clk 0:01:15]}  Rd8 {[%clk 0:00:01]} 27. Qxe5 {[%clk 0:01:11]}  Qxe5 {[%clk 0:00:01]} 28. Rxe5 {[%clk 0:01:12]}  Kf8 {[%clk 0:00:01]} 29. Ng3 {[%clk 0:01:01]} 1-0


[Site "https://www.chess.com"]

[Event "Titled Tuesday Blitz March 29 Late 2022"]
[White "Jarocka, Liwia"]
[Black "Petesch, Gabriel"]
[WhiteFideId "21807558"]
[BlackFideId "2032465"]
[WhiteElo "1896"]
[BlackElo "2374"]
[Result "1-0"]
[Round "10"]
[TimeControl "180+1"]
[Date "2022.03.30"]
[WhiteClock "0:00:06"]
[BlackClock "0:00:01"]

1. e4 {[%clk 0:03:00]}  c5 {[%clk 0:02:59]} 2. Nf3 {[%clk 0:03:00]}  e6 {[%clk 0:02:53]} 3. d4 {[%clk 0:02:59]}  cxd4 {[%clk 0:02:53]} 4. Nxd4 {[%clk 0:03:00]}  Nf6 {[%clk 0:02:53]} 5. Nc3 {[%clk 0:03:00]}  Nc6 {[%clk 0:02:50]} 6. Ndb5 {[%clk 0:02:58]}  d6 {[%clk 0:02:45]} 7. Bf4 {[%clk 0:02:57]}  e5 {[%clk 0:02:40]} 8. Bg5 {[%clk 0:02:57]}  a6 {[%clk 0:02:37]} 9. Na3 {[%clk 0:02:57]}  Be7 {[%clk 0:02:36]} 10. Bxf6 {[%clk 0:02:51]}  Bxf6 {[%clk 0:02:34]} 11. Nc4 {[%clk 0:02:52]}  Nd4 {[%clk 0:02:33]} 12. Ne3 {[%clk 0:02:52]}  O-O {[%clk 0:02:31]} 13. Ncd5 {[%clk 0:02:52]}  Bg5 {[%clk 0:02:30]} 14. c3 {[%clk 0:02:52]}  Ne6 {[%clk 0:02:20]} 15. Bc4 {[%clk 0:02:51]}  Nc5 {[%clk 0:02:19]} 16. f3 {[%clk 0:02:44]}  b5 {[%clk 0:02:05]} 17. Bb3 {[%clk 0:02:43]}  Nxb3 {[%clk 0:01:58]} 18. axb3 {[%clk 0:02:41]}  Bxe3 {[%clk 0:01:48]} 19. Nxe3 {[%clk 0:02:41]}  Qb6 {[%clk 0:01:45]} 20. Nd5 {[%clk 0:02:40]}  Qa7 {[%clk 0:01:42]} 21. Qd2 {[%clk 0:02:40]}  Be6 {[%clk 0:01:39]} 22. Ke2 {[%clk 0:02:25]}  f5 {[%clk 0:01:34]} 23. exf5 {[%clk 0:02:23]}  Rxf5 {[%clk 0:01:29]} 24. Ne3 {[%clk 0:02:18]}  Rf6 {[%clk 0:01:08]} 25. b4 {[%clk 0:01:52]}  e4 {[%clk 0:01:08]} 26. Rhf1 {[%clk 0:01:36]}  Raf8 {[%clk 0:01:07]} 27. Qd4 {[%clk 0:01:21]}  Qf7 {[%clk 0:00:49]} 28. Qxe4 {[%clk 0:01:07]}  Bc4+ {[%clk 0:00:47]} 29. Nxc4 {[%clk 0:00:45]}  Re6 {[%clk 0:00:44]} 30. Nxd6 {[%clk 0:00:35]}  Qg6 {[%clk 0:00:22]} 31. Qxe6+ {[%clk 0:00:16]}  Qxe6+ {[%clk 0:00:21]} 32. Ne4 {[%clk 0:00:17]}  Qb3 {[%clk 0:00:17]} 33. Kf2 {[%clk 0:00:15]}  Qxb2+ {[%clk 0:00:15]} 34. Kg1 {[%clk 0:00:15]}  Qe2 {[%clk 0:00:11]} 35. Rxa6 {[%clk 0:00:14]}  h6 {[%clk 0:00:10]} 36. Raa1 {[%clk 0:00:14]}  Qc4 {[%clk 0:00:08]} 37. Rae1 {[%clk 0:00:15]}  Kh7 {[%clk 0:00:07]} 38. Rd1 {[%clk 0:00:15]}  Qb3 {[%clk 0:00:05]} 39. Rd4 {[%clk 0:00:15]}  Rf7 {[%clk 0:00:05]} 40. Rd6 {[%clk 0:00:15]}  Qa2 {[%clk 0:00:05]} 41. Rb6 {[%clk 0:00:15]}  Rd7 {[%clk 0:00:05]} 42. Rxb5 {[%clk 0:00:12]}  Qe2 {[%clk 0:00:04]} 43. Rc5 {[%clk 0:00:10]}  Rd3 {[%clk 0:00:04]} 44. Re5 {[%clk 0:00:09]}  Qe3+ {[%clk 0:00:04]} 45. Kh1 {[%clk 0:00:07]}  Kg6 {[%clk 0:00:02]} 46. Re6+ {[%clk 0:00:06]}  Kf5 {[%clk 0:00:01]} 47. Re8 {[%clk 0:00:06]} 1-0


[Site "https://www.chess.com"]

[Event "Titled Tuesday Blitz March 29 Late 2022"]
[White "Kalavannan, Koby"]
[Black "Moral Garcia, Serafin"]
[WhiteFideId "425753"]
[BlackFideId "2201925"]
[WhiteElo "1927"]
[BlackElo "2228"]
[Result "1-0"]
[Round "10"]
[TimeControl "180+1"]
[Date "2022.03.29"]
[WhiteClock "0:01:48"]
[BlackClock "0:01:46"]

1. d4 {[%clk 0:03:00]}  Nf6 {[%clk 0:02:59]} 2. c4 {[%clk 0:03:01]}  g6 {[%clk 0:02:59]} 3. Nc3 {[%clk 0:03:01]}  d5 {[%clk 0:02:59]} 4. cxd5 {[%clk 0:03:02]}  Nxd5 {[%clk 0:03:00]} 5. Bd2 {[%clk 0:03:03]}  Nb6 {[%clk 0:02:59]} 6. e4 {[%clk 0:03:02]}  Bg7 {[%clk 0:02:57]} 7. Be3 {[%clk 0:03:02]}  O-O {[%clk 0:02:52]} 8. Nf3 {[%clk 0:03:01]}  Bg4 {[%clk 0:02:52]} 9. Be2 {[%clk 0:03:01]}  Nc6 {[%clk 0:02:50]} 10. d5 {[%clk 0:03:01]}  Bxf3 {[%clk 0:02:49]} 11. gxf3 {[%clk 0:03:02]}  Ne5 {[%clk 0:02:47]} 12. Bd4 {[%clk 0:03:01]}  e6 {[%clk 0:02:41]} 13. f4 {[%clk 0:03:00]}  Ned7 {[%clk 0:02:36]} 14. Bxg7 {[%clk 0:02:57]}  Kxg7 {[%clk 0:02:36]} 15. Qd4+ {[%clk 0:02:55]}  Qf6 {[%clk 0:02:31]} 16. e5 {[%clk 0:02:51]}  Qe7 {[%clk 0:02:29]} 17. O-O-O {[%clk 0:02:41]}  exd5 {[%clk 0:02:24]} 18. Nxd5 {[%clk 0:02:40]}  Nxd5 {[%clk 0:02:24]} 19. Qxd5 {[%clk 0:02:41]}  Qc5+ {[%clk 0:02:25]} 20. Qxc5 {[%clk 0:02:41]}  Nxc5 {[%clk 0:02:24]} 21. Bf3 {[%clk 0:02:37]}  c6 {[%clk 0:02:22]} 22. b4 {[%clk 0:02:36]}  Ne6 {[%clk 0:02:20]} 23. f5 {[%clk 0:02:35]}  gxf5 {[%clk 0:02:16]} 24. Rhg1+ {[%clk 0:02:36]}  Kh8 {[%clk 0:02:15]} 25. Rd7 {[%clk 0:02:35]}  Rab8 {[%clk 0:02:15]} 26. Bh5 {[%clk 0:02:32]}  Nd8 {[%clk 0:02:11]} 27. Rg5 {[%clk 0:02:23]}  Rc8 {[%clk 0:02:04]} 28. Rxf5 {[%clk 0:02:21]}  c5 {[%clk 0:02:04]} 29. b5 {[%clk 0:02:21]}  Kg7 {[%clk 0:02:03]} 30. f4 {[%clk 0:02:03]}  c4 {[%clk 0:01:50]} 31. Bxf7 {[%clk 0:01:55]}  Nxf7 {[%clk 0:01:49]} 32. e6 {[%clk 0:01:56]}  Kg6 {[%clk 0:01:47]} 33. Rfxf7 {[%clk 0:01:55]}  Rxf7 {[%clk 0:01:47]} 34. Rxf7 {[%clk 0:01:55]}  Rc5 {[%clk 0:01:47]} 35. f5+ {[%clk 0:01:52]}  Kg5 {[%clk 0:01:46]} 36. e7 {[%clk 0:01:48]} 1-0


[Site "https://www.chess.com"]

[Event "Titled Tuesday Blitz March 29 Late 2022"]
[White "Kamsky, Gata"]
[Black "Vasquez Schroeder, Rodrigo"]
[WhiteFideId "2000024"]
[BlackFideId "3400042"]
[WhiteElo "2645"]
[BlackElo "2561"]
[Result "1-0"]
[Round "10"]
[TimeControl "180+1"]
[Date "2022.03.29"]
[WhiteClock "0:01:28"]
[BlackClock "0:01:21"]

1. d4 {[%clk 0:03:00]}  d5 {[%clk 0:02:57]} 2. Bf4 {[%clk 0:02:58]}  c5 {[%clk 0:02:57]} 3. e3 {[%clk 0:02:58]}  cxd4 {[%clk 0:02:58]} 4. exd4 {[%clk 0:02:55]}  Nc6 {[%clk 0:02:58]} 5. c3 {[%clk 0:02:55]}  Bf5 {[%clk 0:02:58]} 6. Nd2 {[%clk 0:02:53]}  e6 {[%clk 0:02:57]} 7. Ngf3 {[%clk 0:02:53]}  Bd6 {[%clk 0:02:56]} 8. Bg3 {[%clk 0:02:50]}  Nge7 {[%clk 0:02:52]} 9. Be2 {[%clk 0:02:49]}  h6 {[%clk 0:02:51]} 10. O-O {[%clk 0:02:49]}  O-O {[%clk 0:02:51]} 11. a4 {[%clk 0:02:48]}  a6 {[%clk 0:02:51]} 12. Bxd6 {[%clk 0:02:45]}  Qxd6 {[%clk 0:02:51]} 13. a5 {[%clk 0:02:46]}  Qc7 {[%clk 0:02:48]} 14. Qa4 {[%clk 0:02:45]}  f6 {[%clk 0:02:46]} 15. c4 {[%clk 0:02:32]}  dxc4 {[%clk 0:02:41]} 16. Bxc4 {[%clk 0:02:29]}  Nd5 {[%clk 0:02:40]} 17. Rfe1 {[%clk 0:02:23]}  Rad8 {[%clk 0:02:29]} 18. Nb3 {[%clk 0:02:22]}  Rfe8 {[%clk 0:02:11]} 19. Rac1 {[%clk 0:02:20]}  Bg4 {[%clk 0:01:56]} 20. Nfd2 {[%clk 0:02:12]}  Qf7 {[%clk 0:01:55]} 21. Nc5 {[%clk 0:01:59]}  Nxd4 {[%clk 0:01:43]} 22. Re4 {[%clk 0:01:45]}  b5 {[%clk 0:01:37]} 23. axb6 {[%clk 0:01:42]}  Nxb6 {[%clk 0:01:37]} 24. Qxa6 {[%clk 0:01:41]}  Nxc4 {[%clk 0:01:35]} 25. Qxc4 {[%clk 0:01:41]}  e5 {[%clk 0:01:29]} 26. Rxg4 {[%clk 0:01:29]}  Qxc4 {[%clk 0:01:28]} 27. Rxc4 {[%clk 0:01:29]}  Ne2+ {[%clk 0:01:29]} 28. Kf1 {[%clk 0:01:29]}  Rxd2 {[%clk 0:01:28]} 29. Ne4 {[%clk 0:01:29]}  f5 {[%clk 0:01:21]} 30. Nxd2 {[%clk 0:01:28]} 1-0


[Site "https://www.chess.com"]

[Event "Titled Tuesday Blitz March 29 Late 2022"]
[White "Karttunen, Mika"]
[Black "Sapunov, Evgeny"]
[WhiteFideId "502081"]
[BlackFideId "4126661"]
[WhiteElo "2343"]
[BlackElo "2470"]
[Result "0-1"]
[Round "10"]
[TimeControl "180+1"]
[Date "2022.03.29"]
[WhiteClock "0:00:06"]
[BlackClock "0:00:34"]

1. e4 {[%clk 0:03:00]}  c5 {[%clk 0:02:59]} 2. Nf3 {[%clk 0:03:00]}  d6 {[%clk 0:02:59]} 3. d4 {[%clk 0:03:01]}  cxd4 {[%clk 0:03:00]} 4. Nxd4 {[%clk 0:03:02]}  Nf6 {[%clk 0:03:00]} 5. Nc3 {[%clk 0:03:02]}  Nc6 {[%clk 0:03:01]} 6. Bc4 {[%clk 0:03:01]}  e6 {[%clk 0:03:01]} 7. Be3 {[%clk 0:03:01]}  Be7 {[%clk 0:03:01]} 8. Qe2 {[%clk 0:03:01]}  O-O {[%clk 0:03:01]} 9. O-O-O {[%clk 0:02:58]}  Qc7 {[%clk 0:03:02]} 10. Bb3 {[%clk 0:02:58]}  a6 {[%clk 0:03:01]} 11. g4 {[%clk 0:02:56]}  Nxd4 {[%clk 0:03:01]} 12. Rxd4 {[%clk 0:02:52]}  b5 {[%clk 0:03:01]} 13. g5 {[%clk 0:02:48]}  Nd7 {[%clk 0:03:01]} 14. f4 {[%clk 0:02:47]}  Nc5 {[%clk 0:02:59]} 15. h4 {[%clk 0:02:36]}  Rb8 {[%clk 0:02:52]} 16. a3 {[%clk 0:02:31]}  a5 {[%clk 0:02:47]} 17. Kb1 {[%clk 0:02:14]}  Ba6 {[%clk 0:02:43]} 18. Qg2 {[%clk 0:02:01]}  b4 {[%clk 0:02:42]} 19. axb4 {[%clk 0:02:01]}  Nxb3 {[%clk 0:02:35]} 20. cxb3 {[%clk 0:01:58]}  Rxb4 {[%clk 0:02:35]} 21. Rxb4 {[%clk 0:01:46]}  axb4 {[%clk 0:02:34]} 22. Na4 {[%clk 0:01:42]}  Bd3+ {[%clk 0:02:33]} 23. Ka2 {[%clk 0:01:42]}  Qb7 {[%clk 0:02:30]} 24. Rc1 {[%clk 0:01:24]}  Bxe4 {[%clk 0:02:29]} 25. Qd2 {[%clk 0:01:20]}  Ra8 {[%clk 0:02:14]} 26. Qd4 {[%clk 0:01:01]}  Bd5 {[%clk 0:01:54]} 27. Rc4 {[%clk 0:00:32]}  Qb5 {[%clk 0:01:36]} 28. Rxb4 {[%clk 0:00:30]}  Qe2 {[%clk 0:01:26]} 29. h5 {[%clk 0:00:23]}  Bf8 {[%clk 0:01:25]} 30. h6 {[%clk 0:00:16]}  gxh6 {[%clk 0:01:21]} 31. gxh6 {[%clk 0:00:17]}  Bxh6 {[%clk 0:01:21]} 32. Bd2 {[%clk 0:00:09]}  Bg7 {[%clk 0:01:19]} 33. Qe3 {[%clk 0:00:08]}  Qg2 {[%clk 0:01:07]} 34. Ka3 {[%clk 0:00:07]}  h5 {[%clk 0:01:05]} 35. Bc3 {[%clk 0:00:08]}  Qf3 {[%clk 0:01:00]} 36. Qxf3 {[%clk 0:00:07]}  Bxf3 {[%clk 0:01:00]} 37. Bxg7 {[%clk 0:00:07]}  Kxg7 {[%clk 0:01:00]} 38. Rd4 {[%clk 0:00:07]}  d5 {[%clk 0:00:59]} 39. b4 {[%clk 0:00:07]}  h4 {[%clk 0:00:55]} 40. Rd3 {[%clk 0:00:08]}  Bg4 {[%clk 0:00:49]} 41. b5 {[%clk 0:00:06]}  h3 {[%clk 0:00:47]} 42. Rg3 {[%clk 0:00:06]}  f5 {[%clk 0:00:47]} 43. Rg1 {[%clk 0:00:06]}  Rb8 {[%clk 0:00:45]} 44. b6 {[%clk 0:00:06]}  Kf6 {[%clk 0:00:45]} 45. Rh1 {[%clk 0:00:05]}  e5 {[%clk 0:00:45]} 46. fxe5+ {[%clk 0:00:04]}  Kxe5 {[%clk 0:00:46]} 47. Kb4 {[%clk 0:00:05]}  f4 {[%clk 0:00:46]} 48. Kc5 {[%clk 0:00:05]}  f3 {[%clk 0:00:46]} 49. Kc6 {[%clk 0:00:06]}  f2 {[%clk 0:00:43]} 50. b7 {[%clk 0:00:06]}  Kf4 {[%clk 0:00:42]} 51. Kc7 {[%clk 0:00:06]}  Rh8 {[%clk 0:00:41]} 52. Nc5 {[%clk 0:00:06]}  Kg3 {[%clk 0:00:39]} 53. b8=Q {[%clk 0:00:04]}  Rxb8 {[%clk 0:00:39]} 54. Kxb8 {[%clk 0:00:05]}  Be2 {[%clk 0:00:36]} 55. b4 {[%clk 0:00:05]}  f1=Q {[%clk 0:00:36]} 56. Rxf1 {[%clk 0:00:05]}  Bxf1 {[%clk 0:00:37]} 57. Ne6 {[%clk 0:00:05]}  h2 {[%clk 0:00:37]} 58. Nd4 {[%clk 0:00:05]}  h1=Q {[%clk 0:00:36]} 59. Nf5+ {[%clk 0:00:05]}  Kf4 {[%clk 0:00:36]} 60. Nd6 {[%clk 0:00:06]}  Qh2 {[%clk 0:00:34]} 61. Kc7 {[%clk 0:00:06]}  Ke5 {[%clk 0:00:34]} 0-1


[Site "https://www.chess.com"]